Cogmind - Beta 11 X3 @@@ ROGUE MODE // 2021.03.17 @ 00:03:52 Player: Judas Result: Self-destructed Performance ------------- Evolutions (2) 1000 Regions Visited (5) 1000 Robots Destroyed (21) 105 Value Destroyed (621) 621 Prototype IDs (26) 520 Alien Tech Used (0) 0 Bonus (497) 497 TOTAL SCORE: 3743 Bonus ------- Follower Combat Kills 208 Aligned with FarCom 300 Friendly Fire -11 Cogmind --------- Core Integrity 289/550 Matter 255/300 Energy 100/100 System Corruption 0% Temperature Cool (0) Movement Flying (105) Ox1 Location -8/Materials Parts ------- > --- POWER (1) -------- (None) > --- PROPULSION (3) --- Improved VTOL Module > --- UTILITY (4) ------ Small Storage Unit > --- WEAPON (3) ------- Light Assault Rifle > --- INVENTORY (8) ---- Improved Terrain Scan Processor Medium Laser Particle Gun Longsword +1 Peak State ------------ > --- POWER ------------ Light Angular Momentum Engine > --- PROPULSION ------- Light Treads Light Treads Light Treads > --- UTILITY ---------- Small Storage Unit Experimental Sensor Array Improved Terrain Scanner > --- WEAPON ----------- Heavy Particle Gun Heavy Laser Light Assault Rifle > --- INVENTORY -------- Light Ion Engine Nuclear Core Light Fission Core Improved Terrain Scan Processor Medium Laser Particle Gun Grenade Launcher Longsword +1 [Rating: 32] Favorites ----------- Power Light Ion Engine Engine Light Ion Engine Propulsion Light Treads Treads Light Treads Leg Aluminum Leg Flight Unit Improved VTOL Module Utility Small Storage Unit Device Improved Terrain Scanner Storage Small Storage Unit Protection Hardened Light Armor Plating Weapon Light Assault Rifle Energy Gun Heavy Laser Ballistic Gun Light Assault Rifle Launcher Grenade Launcher Build | -11 -10 -10 -10 -9 -8 ------- Run | Scr Mat Min Exi Min Mat Slots Evolved 4 | . . . . . 4 Power . | . . . . . . Propulsion 1 | . . . . . 1 Utility 2 | . . . . . 2 Weapon 1 | . . . . . 1 Parts Attached 29 | 1 2 9 . 5 12 Power 4 | . . 2 . . 2 Engine 4 | . . 2 . . 2 Core . | . . . . . . Reactor . | . . . . . . Propulsion 8 | . 2 2 . 1 3 Treads 6 | . 2 2 . 1 1 Leg . | . . . . . . Wheel . | . . . . . . Hover . | . . . . . . Flight 2 | . . . . . 2 Utility 4 | 1 . . . 1 2 Device 3 | 1 . . . 1 1 Storage . | . . . . . . Processor . | . . . . . . Hackware . | . . . . . . Protection 1 | . . . . . 1 Artifact . | . . . . . . Weapon 13 | . . 5 . 3 5 Energy Gun 3 | . . . . . 3 Energy Cannon . | . . . . . . Ballistic Gun 6 | . . 4 . 2 . Ballistic Cannon . | . . . . . . Launcher 4 | . . 1 . 1 2 Special Weapon . | . . . . . . Impact Weapon . | . . . . . . Slashing Weapon . | . . . . . . Piercing Weapon . | . . . . . . Special Melee Weapon . | . . . . . . Unidentified Prototypes 3 | . . . . 1 2 Parts Lost 14 | . . 4 . . 10 Power 4 | . . 2 . . 2 Propulsion 4 | . . 1 . . 3 Utility 3 | . . . . . 3 Weapon 3 | . . 1 . . 2 Highest Loss Streak 6 | . . 2 . . 6 Average Slot Usage (%) 98 | . 100 98 100 100 86 Engine 13 | . 14 13 14 14 7 Treads 26 | . 8 27 28 28 21 Device 14 | . 14 14 14 14 15 Storage 13 | . 14 14 14 14 9 Ballistic Gun 26 | . 28 26 28 28 15 Naked Turns . | . . . . . . Heaviest Build 27 | 14 14 16 11 13 27 Greatest Support 60 | 20 43 43 40 40 60 Greatest Overweight (x) 1 | . . . . . 1 Average Overweight (x) . | . . . . . . Largest Inventory Capacity 8 | 8 8 8 8 8 8 Average Capacity 8 | 8 8 8 8 8 8 Most Carried 8 | 6 8 8 8 8 8 Average Carried 7 | 6 7 6 7 7 6 Final Capacity 8 | 8 8 8 8 8 8 Final Carried 8 | 6 8 6 8 8 4 Class Distribution -------------------- 66% | Mutant 21% | Skirmisher 7% | Scavenger-Skirmisher 4% | Scavenger-Mutant Dominant Class ---------------- Mutant | -10/Materials Mutant | -10/Mines Mutant | -10/Exiles Skirmisher | -9/Mines Scavenger-Skirmisher | -8/Materials Resources | -11 -10 -10 -10 -9 -8 ----------- Run | Scr Mat Min Exi Min Mat Matter Collected 655 | 242 . 239 . 84 90 Remotely . | . . . . . . Salvage Created 761 | 127 . 242 . 57 335 Parts 34 | 4 . 16 . 4 10 Haulers Intercepted . | . . . . . . Recyclers Shooed . | . . . . . . Parts Field Recycled . | . . . . . . Retrieved Matter . | . . . . . . Parts Self-Destructed . | . . . . . . Prevented . | . . . . . . Kills | -11 -10 -10 -10 -9 -8 ------- Run | Scr Mat Min Exi Min Mat Combat Hostiles Destroyed 18 | . . 9 . 2 7 Guns 13 | . . 7 . 1 5 AOE 5 | . . 2 . 1 2 Classes Destroyed 6 | 2 . 3 . 1 . Worker 1 | . . 1 . . . Tunneler 1 | 1 . . . . . Recycler 1 | 1 . . . . . Swarmer 7 | . . 6 . 1 . Grunt 10 | . . 3 . . 7 Duelist 1 | . . . . 1 . Best Kill Streak 4 | 2 . 4 . 1 3 Combat Bots Only 3 | . . 3 . 1 3 Max Kills in Single Turn 2 | 1 . 2 . 1 1 Gunslinging 1 | . . 1 . . . Exploded 2 | . . 2 . 1 1 Melee . | . . . . . . Uniques/NPCs Destroyed . | . . . . . . Combat | -11 -10 -10 -10 -9 -8 -------- Run | Scr Mat Min Exi Min Mat Damage Taken 2004 | . . 766 . 11 1227 Core 462 | . . 201 . . 261 Absorbed by Shields . | . . . . . . Core Remaining (%) 59 | 100 . . . 19 . Volleys Fired 89 | 8 . 47 . 5 29 Largest 3 | 2 . 2 . 2 3 Hottest 144 | 40 . 40 . 40 144 Shots Fired 149 | 16 . 70 . 9 54 Gun 144 | 16 . 69 . 8 51 Cannon . | . . . . . . Launcher 5 | . . 1 . 1 3 Special . | . . . . . . Kinetic 132 | 16 . 69 . 8 39 Thermal 12 | . . . . . 12 Explosive 5 | . . 1 . 1 3 Electromagnetic . | . . . . . . Robot Hit Streak 17 | 3 . 17 . 8 9 Robot Miss Streak 5 | 5 . 4 . . 3 Penetration Max . | . . . . . . Secondary Targets 4 | . . 2 . . 2 Max Gunslinging Chain 1 | . . 1 . . 1 Shots Hit Robots 93 | 7 . 44 . 5 37 Core Hits 48 | 4 . 15 . 6 23 Critical Hits . | . . . . . . Critical Kills . | . . . . . . Critical Parts Destroyed . | . . . . . . Melee Attacks . | . . . . . . Impact . | . . . . . . Slashing . | . . . . . . Piercing . | . . . . . . Sneak Attacks . | . . . . . . Combat Hostiles . | . . . . . . Follow-up Attacks . | . . . . . . Damage Inflicted 1298 | 63 . 548 . 105 582 Guns 884 | 63 . 408 . 48 365 Cannons . | . . . . . . Explosions 404 | . . 130 . 57 217 Melee . | . . . . . . Ramming 10 | . . 10 . . . Kinetic 735 | 63 . 408 . 48 216 Thermal 149 | . . . . . 149 Explosive 404 | . . 130 . 57 217 Electromagnetic . | . . . . . . Impact . | . . . . . . Slashing . | . . . . . . Piercing . | . . . . . . Highest Corruption . | . . . . . . Average Corruption . | . . . . . . Corruption Purged . | . . . . . . Overload Shots . | . . . . . . Overflow Damage . | . . . . . . Projectiles . | . . . . . . Explosions . | . . . . . . Melee . | . . . . . . Knockbacks 1 | . . 1 . . . Impact 1 | . . 1 . . . Kinetic . | . . . . . . Secondary . | . . . . . . Self-Inflicted Damage 52 | . . 20 . . 32 Shots 2 | . . 1 . . 1 Rammed 4 | . . 3 . . 1 Targets Rammed 4 | . . 3 . . 1 Kicked . | . . . . . . Crushed . | . . . . . . Highest Temperature 356 | . . 16 . 1 356 Average Temperature 100 | . . 8 . 1 122 Received Heat Transfer 921 | . . 294 . 6 621 Siege Activations . | . . . . . . Robots Corrupted . | . . . . . . Combat Hostiles . | . . . . . . Parts Fried . | . . . . . . Impact Corruptions . | . . . . . . Robots Melted . | . . . . . . Combat Hostiles . | . . . . . . Parts Melted 2 | . . . . . 2 Heat Transferred 296 | . . . . . 296 Parts Sabotaged . | . . . . . . Parts Stolen . | . . . . . . Parts Stripped . | . . . . . . Power Chain Reactions . | . . . . . . Missiles Intercepted . | . . . . . . Alert | -11 -10 -10 -10 -9 -8 ------- Run | Scr Mat Min Exi Min Mat Peak Influence 256 | 10 36 203 . 256 120 Initial 21 | . 6 13 . . 21 Average 116 | 7 12 112 . 173 81 Maximum Alert Level 1 | . . 1 . 1 . Low Security (%) 84 | 100 100 95 . 49 100 Level 1 15 | . . 4 . 50 . Level 2 . | . . . . . . Level 3 . | . . . . . . Level 4 . | . . . . . . Level 5 . | . . . . . . High Security . | . . . . . . Max Security . | . . . . . . Squads Dispatched 1 | . . . . . 1 Investigation . | . . . . . . Extermination . | . . . . . . Reinforcement 1 | . . . . . 1 Assault . | . . . . . . Garrison . | . . . . . . Intercept . | . . . . . . Construction Impeded . | . . . . . . Haulers Reinforced . | . . . . . . Stealth | -11 -10 -10 -10 -9 -8 --------- Run | Scr Mat Min Exi Min Mat Distress Signals 4 | . 1 . . . 3 Communications Jammed . | . . . . . . Distress Signals . | . . . . . . Times Spotted 42 | . 4 18 . 5 15 Peak Tracking Total 6 | . 4 3 . 3 6 Tactical Retreats 3 | . . 3 . . . Traps | -11 -10 -10 -10 -9 -8 ------- Run | Scr Mat Min Exi Min Mat Traps Triggered . | . . . . . . Indirectly . | . . . . . . Trap Hack Attempts . | . . . . . . Triggered . | . . . . . . Disarmed . | . . . . . . Reprogrammed . | . . . . . . Reused . | . . . . . . Traps Extracted . | . . . . . . Installed . | . . . . . . Triggered . | . . . . . . Exploded 2 | . . . . . 2 Machines | -11 -10 -10 -10 -9 -8 ---------- Run | Scr Mat Min Exi Min Mat Machines Disabled 3 | . . 1 . . 2 Max in Single Turn 1 | . . . . . 1 Machines Sabotaged . | . . . . . . Garrisons Compromised . | . . . . . . Overloaded Fab Kills . | . . . . . . Fab Network Shutdowns . | . . . . . . Hacking | -11 -10 -10 -10 -9 -8 --------- Run | Scr Mat Min Exi Min Mat Machines Accessed 7 | . 2 . 4 . 1 Terminals 1 | . 1 . . . . Fabricators . | . . . . . . Repair Stations . | . . . . . . Recycling Units 2 | . 1 . . . 1 Scanalyzers . | . . . . . . Garrison Access . | . . . . . . Total Hacks 33 | . 5 . 27 . 1 Successful 30 | . 2 . 27 . 1 Failed 3 | . 3 . . . . Catastrophic 1 | . 1 . . . . Database Lockouts . | . . . . . . Manual 4 | . 3 . 1 . . Terminals 3 | . 3 . . . . Fabricators . | . . . . . . Repair Stations . | . . . . . . Recycling Units 3 | . 2 . . . 1 Scanalyzers . | . . . . . . Garrison Access . | . . . . . . Terminal Hacks 27 | . . . 27 . . Record 26 | . . . 26 . . EX-Prototype ID Bank 1 | . . . 1 . . Fabricator Hacks . | . . . . . . Repair Station Hacks . | . . . . . . Recycling Unit Hacks 2 | . 1 . . . 1 Retrieve Components 2 | . 1 . . . 1 Scanalyzer . | . . . . . . Garrison Access Hacks . | . . . . . . Unauthorized Hacks 1 | . 1 . . . . Terminals 1 | . 1 . . . . Botnet 1 | . 1 . . . . Fabricators . | . . . . . . Repair Stations . | . . . . . . Recycling Units . | . . . . . . Scanalyzers . | . . . . . . Garrison Access . | . . . . . . Data Cores Recovered . | . . . . . . Used . | . . . . . . Hacking Detections 1 | . 1 . . . . Full Trace Events 1 | . 1 . . . . Feedback Events . | . . . . . . Feedback Blocked . | . . . . . . Robot Schematics Acquired . | . . . . . . Robots Built . | . . . . . . Matter . | . . . . . . Time . | . . . . . . Total Robot Build Rating . | . . . . . . Part Schematics Acquired . | . . . . . . Parts Built . | . . . . . . Matter . | . . . . . . Time . | . . . . . . Total Part Build Rating . | . . . . . . Parts Repaired . | . . . . . . Time . | . . . . . . Parts Recycled . | . . . . . . Recycled Matter . | . . . . . . Retrieved Matter . | . . . . . . Retrieved Components 4 | . 3 . . . 1 Parts Scanalyzed . | . . . . . . Part Schematics Acquired . | . . . . . . Parts Damaged . | . . . . . . Bothacking | -11 -10 -10 -10 -9 -8 ------------ Run | Scr Mat Min Exi Min Mat Used RIF Installer . | . . . . . . Robots Hacked . | . . . . . . Non-combat . | . . . . . . Combat . | . . . . . . Robot Hacks Applied . | . . . . . . Relay Couplers Released . | . . . . . . Robots Rewired . | . . . . . . Allies Hacked . | . . . . . . Hacks Repelled . | . . . . . . Allies | -11 -10 -10 -10 -9 -8 -------- Run | Scr Mat Min Exi Min Mat Total Allies 3 | . . 1 . 2 . Largest Group 2 | . . 1 . 2 2 Highest-Rated Group 49 | . . 31 . 49 49 Highest-Rated Ally 31 | . . 31 . 31 31 Total Orders . | . . . . . . Ally Attacks 33 | . . 10 . 20 3 Total Damage 526 | . . 146 . 318 62 Kills 10 | . . 2 . 8 . Allies Corrupted . | . . . . . . Allies Melted . | . . . . . . Intel | -11 -10 -10 -10 -9 -8 ------- Run | Scr Mat Min Exi Min Mat Robot Analysis Total . | . . . . . . Derelict Logs Recovered 2 | . . 1 . 1 . Drone Launches . | . . . . . . Drone Recoveries . | . . . . . . Exploration | -11 -10 -10 -10 -9 -8 ------------- Run | Scr Mat Min Exi Min Mat Turns Passed 2152 | 45 69 863 532 416 227 Spaces Moved 1175 | 18 49 451 331 241 85 Core . | . . . . . . Treads 1118 | . 13 451 331 241 82 Legs 54 | 18 36 . . . . Wheels . | . . . . . . Hover . | . . . . . . Flight 3 | . . . . . 3 Fastest Speed 32 | 120 120 160 160 160 32 Average Speed 157 | 120 130 160 160 160 157 Slowest Speed 160 | 120 160 160 160 160 160 Overloaded Moves . | . . . . . . Propulsion Burnouts . | . . . . . . Robots Hopped . | . . . . . . Cave-ins Triggered . | . . . . . . Exploration Rate (%) 39 | 2 14 86 64 55 13 Regions Visited 5 Branch Regions 3 Pre-discovered Areas . | . . . . . . Known Exits Taken . | . . . . . . Unknown Exits Taken 5 | 1 1 1 1 1 . Scrap Searched 1 | . . 1 . . . Spaces Dug . | . . . . . . Terrain Destroyed 32 | . . 7 . 3 22 Melee . | . . . . . . Projectile . | . . . . . . AOE 32 | . . 7 . 3 22 Terrain Rammed . | . . . . . . Walls Destroyed . | . . . . . . Machines Disabled . | . . . . . . Actions | -11 -10 -10 -10 -9 -8 --------- Run | Scr Mat Min Exi Min Mat Total 1338 | 26 55 524 334 264 135 Wait 21 | . . 11 . 10 . Move 1170 | 17 48 450 330 240 85 Hop . | . . . . . . Pick Up 11 | . 3 1 3 1 3 Fast Attach 6 | 1 1 1 . . 3 Attach 10 | . 1 3 . . 6 Detach . | . . . . . . Swap 13 | . . 5 . 5 3 Drop 14 | . 2 3 1 3 5 Fire 89 | 8 . 47 . 5 29 Melee . | . . . . . . Ram . | . . . . . . Kick . | . . . . . . Crush 4 | . . 3 . . 1 Escape Stasis . | . . . . . . Rewire . | . . . . . . Trap . | . . . . . . Miscellaneous . | . . . . . . Route ------- -11/Scrapyard -10/Materials -10/Mines (discovered 3 exits: [*Mat x2] / *Exi) -10/Exiles -9/Mines -8/Materials History --------- Turn | Location | Event 24 | -11/Scrapyard | Discovered new exit (range 1) 46 | -11/Scrapyard | Entered Materials 64 | -10/Materials | Discovered new exit (range 15) 115 | -10/Materials | Entered Mines 288 | -10/Mines | Core integrity fell below 50% 318 | -10/Mines | Build established: Mutant 413 | -10/Mines | Discovered new exit (range 8) 415 | -10/Mines | Learned Materials security intel 492 | -10/Mines | Discovered new exit (range 5) 495 | -10/Mines | Received a Mining Laser from a helpful Derelict 904 | -10/Mines | Core integrity fell below 20% 971 | -10/Mines | Deemed a non-threat by the Exiles lab entrance 971 | -10/Mines | Discovered new exit (range 5) 978 | -10/Mines | Entered Exiles 1025 | -10/Exiles | Met 8R-AWN 1048 | -10/Exiles | Met EX-HEX 1152 | -10/Exiles | Met EX-BIN 1182 | -10/Exiles | Aligned with FarCom system 1184 | -10/Exiles | Given EX-Vault access code 1280 | -10/Exiles | Opened EX-Vault 1307 | -10/Exiles | Found Longsword +1 1340 | -10/Exiles | Warned to stay clear of 0b10 Research branches 1346 | -10/Exiles | Exiles lab attacked by MAIN.C 1488 | -10/Exiles | Discovered new exit (range 14) 1510 | -10/Exiles | Left Exiles lab with Longsword +1 1510 | -10/Exiles | Entered Mines 1657 | -9/Mines | Found a damaged Exp. Sensor Array with a note attached 1661 | -9/Mines | Found Prototype Device 1662 | -9/Mines | Identified Exp. Sensor Array 1807 | -9/Mines | Build established: Skirmisher 1919 | -9/Mines | Discovered new exit (range 5) 1926 | -9/Mines | Entered Materials 1926 | -8/Materials | Accompanied by 2 allies 1926 | -8/Materials | Evolved 4 slots: Propulsion x1, Utility x2, Weapon x1 1931 | -8/Materials | Led the pair of lost Derelicts to an unsafe place 2137 | -8/Materials | Lost 6 parts (1p2n2u1w) 2153 | -8/Materials | Self-destructed Last Messages --------------- 02118_ U-05 Engineer lays Concrete. 02118_ Rigged Lgt. Fission Core explodes. 02118_ G-47 Trooper destroyed. 02119_ U-05 Engineer lays Concrete. 02119_ Slammed into K-01 Serf. 02120_ U-05 Engineer lays Concrete. 02127_ Acquired Prototype Flight Unit. 02127_ Identified Imp. VTOL Module. 02129_ Dropped Lgt. Treads. 02131_ Acquired Cesium-ion Thruster. 02134_ Dropped Hvy. Particle Gun. 02138_ G-47 Trooper destroyed. 02140_ U-05 Engineer lays Concrete. 02143_ Exp. Sensor Array destroyed. 02148_ Electrolysis Chamber disabled. 02149_ Penetrated by Slug. 02149_ Grenade Launcher destroyed. 02150_ Lgt. Ion Engine destroyed. 02152_ Penetrated by Slug. 02152_ Cesium-ion Thruster destroyed. Map ----- +----------------------------------------------------+ | ?????????????????????????? #??# """ + #???????# | | ??????????????????????????????# """ # #?????#?? | | ??????????????????????? ??????# """ |# #??##???? | | ????????????????????????????#?# # ##?????#? | | ?????????????????????????"???######??# ######### | | ????????????????????????????????????## # | | ???????????????????????????#??#????### # """ | | ??????????????????????????????#????# # # """ | | ??????????????????????????? ????#?###% # """ | | ???????????????????????????? ?????###%% + | | ????????????????????????????????###?## # | | ?????????????????????????????? ????## # | | ?????????????????????????????? ?#??## # "Y" | | ?????????????????????????????? ?????## # """ | | ?????????????????????????##/########## ######### | | ???????????????????????? | | ???????????????????????? | | ???????????????????????? | | ?????????????????????????#########+### ### ##### | | ?????????????????????????????????? ??# #?? ##?? | | ???????????????????????########????? # #???##??? | | ???????????????????????#! #??????# ##??????? | | ???????????????????????# """ #??"???# #???????? | | ??????????????????????## """ ##?????# #???????? | | ??????????????????????# " #?????# #???????? | | ???????????????????????# @!== #?????# #???#???? | | ???????????????????????#[ =gY ##?????# #???????? | | ??????????????????####### #######" #???????? | | ????????????? ** #???????? | | ????????????? %! #?????#?? | | ????????????? a h =%!= #???????? | | ??????????????################## %[ #???????? | | ???????????????????????????????# #???????? | | ??????????gg???????????????????# w ?????? | | ?????????????g?????????????????# ???? | | ???????????????????????????????# ??? | | ???????????????????????????????# """ #######?? | | ???????????????????????????????# w """ #???????? | | ???????????????????????????????# """ #???????? | | ???????????????????????????????# #???????? | | ???????????????????????????????# ? ##??????? | | ???????????????????????????????# ""? ##??????? | | ??????????????????????????????? "?? #???????? | | ???????????????????????????????? "?? #???????? | | ???????????????????????????????? ???? ????????? | | ?????????????????????????????????????????????????? | | ?????????????????????????????????????????????????? | | ?????????????????????????????????????????????????? | | ?????????????????????????????????????????????????? | | ?????????????????????????????????????????????????? | +----------------------------------------------------+ Best States ------------- Heat Dissipation 31 Energy Generation 18 Energy Capacity 250 Matter Stores 300 Matter Capacity 300 Sight Range 16 Robot Scan Range 20 Terrain Scan Range 16 Terrain Scan Density 10 Armor Coverage 150 Evasion (%) 50 Recoil Reduction 3 Item Schematics ----------------- None Robot Schematics ------------------ None Fabricated ------------ Nothing Alien Tech Used ----------------- None Achievements -------------- None Challenges ------------ None Game ------ Seed LayeredDynamicModule Manual? 0 Play Time 00:22:31 Cumulative 92.3 hours Start 2021.03.16 @ 23:42:23 End 2021.03.17 @ 00:03:52 Sessions 1 Manual Loads 0 Difficulty Rogue Special Mode None Game No. 160 Rogue 155 Adventurer 0 Explorer 5 Win Type - Total 0 Types 0/0/0/0/0/0/0/0/0 Lore% 40 Gallery% 54 Achievement% 42 Wizard Run 0 Options --------- ASCII 0 Keyboard 0 Movement Mouse Keybinds 0 Fullscreen 2 Font 18/Smallcaps Map View 76x50 Tactical HUD 1 Map Filters NONE Filters NONE Steam 1 RUN: d48cdebc-7baf-43ea-9605-a28dd67d82bc